Cogmind - Beta 9.2 @@@ ROGUE MODE // 2019.11.22 @ 19:21:16 Player: Pimski Result: Destroyed by D-53 Grenadier with Mini Grenade Launcher Performance ------------- Evolutions (0) 0 Regions Visited (2) 400 Robots Destroyed (20) 100 Value Destroyed (527) 527 Prototype IDs (3) 60 Alien Tech Used (0) 0 Bonus (0) 0 TOTAL SCORE: 1087 Bonus ------- None Cogmind --------- Core Integrity 0/250 Matter 290/300 Energy 132/250 System Corruption 0% Temperature Cool (0) Movement Treading (180) Ox1 Location -10/Mines Parts ------- > --- POWER (1) -------- Ion Engine > --- PROPULSION (2) --- Light Treads Light Treads > --- UTILITY (2) ------ Large Storage Unit High-capacity Storage Unit > --- WEAPON (2) ------- Particle Gun Light Cannon > --- INVENTORY (18) --- Light Treads Light Treads Compact Wheel Medium Storage Unit Large Storage Unit Large Matter Pod (150) Transport Network Coupler Targeting Computer Light Armor Plating Small Laser Assault Rifle Light Assault Rifle Light Assault Rifle Light Assault Rifle Datajack Peak State ------------ > --- POWER ------------ Ion Engine > --- PROPULSION ------- Light Treads Light Treads > --- UTILITY ---------- Large Storage Unit High-capacity Storage Unit > --- WEAPON ----------- Particle Gun Light Cannon > --- INVENTORY -------- Light Treads Light Treads Compact Wheel Medium Storage Unit Large Storage Unit Large Matter Pod Transport Network Coupler Targeting Computer Light Armor Plating Small Laser Assault Rifle Light Assault Rifle Light Assault Rifle Light Assault Rifle Datajack [Rating: 9] Favorites ----------- Power Light Ion Engine Engine Light Ion Engine Propulsion Light Treads Treads Light Treads Leg Aluminum Leg Wheel Compact Wheel Utility Small Storage Unit Storage Small Storage Unit Weapon Light Assault Rifle Energy Gun Particle Gun Ballistic Gun Light Assault Rifle Ballistic Cannon Light Cannon Build | -11 -10 -10 ------- Run | Scr Mat Min Slots Evolved . | . . . Power . | . . . Propulsion . | . . . Utility . | . . . Weapon . | . . . Parts Attached 16 | 1 8 7 Power 2 | . . 2 Engine 2 | . . 2 Core . | . . . Reactor . | . . . Propulsion 7 | . 4 3 Treads 6 | . 4 2 Leg . | . . . Wheel 1 | . . 1 Hover . | . . . Flight . | . . . Utility 4 | 1 3 . Device . | . . . Storage 4 | 1 3 . Processor . | . . . Hackware . | . . . Protection . | . . . Artifact . | . . . Weapon 3 | . 1 2 Energy Gun 1 | . . 1 Energy Cannon . | . . . Ballistic Gun 1 | . 1 . Ballistic Cannon 1 | . . 1 Launcher . | . . . Special Weapon . | . . . Impact Weapon . | . . . Slashing Weapon . | . . . Piercing Weapon . | . . . Special Melee Weapon . | . . . Unidentified Prototypes . | . . . Parts Lost 4 | . . 4 Power 1 | . . 1 Propulsion 1 | . . 1 Utility . | . . . Weapon 2 | . . 2 Highest Loss Streak 3 | . . 3 Average Slot Usage (%) 98 | . 99 91 Engine 13 | . 14 10 Treads 26 | . 27 24 Storage 28 | . 28 28 Ballistic Gun 26 | . 27 20 Naked Turns . | . . . Heaviest Build 59 | 14 54 59 Greatest Support 40 | 20 40 40 Greatest Overweight (x) 3 | . 1 3 Average Overweight (x) . | . . 1 Largest Inventory Capacity 18 | 8 18 18 Average Capacity 13 | 6 13 18 Most Carried 18 | 6 18 18 Average Carried 12 | 6 12 17 Final Capacity 18 | 8 18 18 Final Carried 18 | 6 18 15 Class Distribution -------------------- 100% | Mutant Dominant Class ---------------- Mutant | -10/Materials Mutant | -10/Mines Resources | -11 -10 -10 ----------- Run | Scr Mat Min Matter Collected 757 | 246 409 102 Remotely . | . . . Salvage Created 795 | 51 641 103 Parts 44 | 3 30 11 Haulers Intercepted 2 | . 2 . Recyclers Shooed . | . . . Parts Field Recycled . | . . . Retrieved Matter . | . . . Parts Self-Destructed . | . . . Prevented . | . . . Kills | -11 -10 -10 ------- Run | Scr Mat Min Combat Hostiles Destroyed 16 | . 11 5 Guns 15 | . 11 4 Cannons 1 | . . 1 Classes Destroyed 4 | 1 2 1 Hauler 2 | . 2 . Recycler 2 | 1 1 . Swarmer 3 | . . 3 Grunt 13 | . 11 2 Best Kill Streak 3 | 1 3 3 Combat Bots Only 3 | . 2 3 Max Kills in Single Turn 2 | 1 1 2 Gunslinging 1 | . . 1 Exploded . | . . . Melee . | . . . Uniques/NPCs Destroyed . | . . . Combat | -11 -10 -10 -------- Run | Scr Mat Min Damage Taken 1094 | . 412 682 Core 255 | . 95 160 Absorbed by Shields . | . . . Core Remaining (%) 100 | 100 . . Volleys Fired 70 | 9 53 8 Largest 2 | 2 2 2 Hottest 100 | 40 40 100 Shots Fired 140 | 18 106 16 Gun 137 | 18 106 13 Cannon 3 | . . 3 Launcher . | . . . Special . | . . . Kinetic 137 | 18 106 13 Thermal 3 | . . 3 Explosive . | . . . Electromagnetic . | . . . Robot Hit Streak 16 | 4 16 7 Robot Miss Streak 4 | 4 2 3 Penetration Max . | . . . Secondary Targets 1 | . . 1 Max Gunslinging Chain 1 | . . 1 Shots Hit Robots 96 | 8 78 10 Core Hits 41 | 4 30 7 Critical Hits . | . . . Critical Kills . | . . . Critical Parts Destroyed . | . . . Melee Attacks . | . . . Impact . | . . . Slashing . | . . . Piercing . | . . . Sneak Attacks . | . . . Combat Hostiles . | . . . Follow-up Attacks . | . . . Damage Inflicted 1068 | 99 817 152 Guns 1034 | 99 817 118 Cannons 34 | . . 34 Explosions . | . . . Melee . | . . . Ramming . | . . . Kinetic 1024 | 99 817 108 Thermal 44 | . . 44 Explosive . | . . . Electromagnetic . | . . . Impact . | . . . Slashing . | . . . Piercing . | . . . Highest Corruption . | . . . Average Corruption . | . . . Corruption Purged . | . . . Overload Shots . | . . . Overflow Damage . | . . . Projectiles . | . . . Explosions . | . . . Melee . | . . . Knockbacks 1 | . . 1 Impact . | . . . Kinetic 1 | . . 1 Secondary . | . . . Self-Inflicted Damage . | . . . Shots . | . . . Rammed 1 | . 1 . Targets Rammed 1 | . 1 . Kicked . | . . . Crushed . | . . . Highest Temperature 81 | . 18 81 Average Temperature 16 | . 7 42 Received Heat Transfer 402 | . 228 174 Siege Activations . | . . . Robots Corrupted . | . . . Combat Hostiles . | . . . Parts Fried . | . . . Impact Corruptions . | . . . Robots Melted . | . . . Combat Hostiles . | . . . Parts Melted . | . . . Heat Transferred 111 | . . 111 Parts Sabotaged . | . . . Parts Stolen . | . . . Parts Stripped . | . . . Power Chain Reactions . | . . . Missiles Intercepted . | . . . Alert | -11 -10 -10 ------- Run | Scr Mat Min Peak Influence 170 | 5 170 75 Average Influence 66 | 3 70 58 Maximum Alert Level . | . . . Low Security (%) 100 | 100 100 100 Level 1 . | . . . Level 2 . | . . . Level 3 . | . . . Level 4 . | . . . Level 5 . | . . . High Security . | . . . Max Security . | . . . Squads Dispatched 4 | . 4 . Investigation 2 | . 2 . Extermination . | . . . Reinforcement 2 | . 2 . Assault . | . . . Garrison . | . . . Intercept . | . . . Construction Impeded . | . . . Haulers Reinforced . | . . . Stealth | -11 -10 -10 --------- Run | Scr Mat Min Distress Signals . | . . . Communications Jammed . | . . . Distress Signals . | . . . Times Spotted 36 | . 23 13 Peak Tracking Total 6 | . 2 6 Tactical Retreats 3 | . 2 1 Traps | -11 -10 -10 ------- Run | Scr Mat Min Traps Triggered 1 | . 1 . Indirectly . | . . . Trap Hack Attempts . | . . . Triggered . | . . . Disarmed . | . . . Reprogrammed . | . . . Reused . | . . . Traps Extracted . | . . . Installed . | . . . Triggered . | . . . Machines | -11 -10 -10 ---------- Run | Scr Mat Min Machines Disabled . | . . . Max in Single Turn . | . . . Machines Sabotaged . | . . . Garrisons Compromised . | . . . Overloaded Fab Kills . | . . . Fab Network Shutdowns . | . . . Hacking | -11 -10 -10 --------- Run | Scr Mat Min Machines Accessed 4 | . 4 . Terminals 3 | . 3 . Fabricators . | . . . Repair Stations 1 | . 1 . Recycling Units . | . . . Scanalyzers . | . . . Garrison Access . | . . . Total Hacks 15 | . 15 . Successful 10 | . 10 . Failed 4 | . 4 . Catastrophic 1 | . 1 . Database Lockouts 2 | . 2 . Manual 5 | . 5 . Terminals 7 | . 7 . Fabricators . | . . . Repair Stations 8 | . 8 . Recycling Units . | . . . Scanalyzers . | . . . Garrison Access . | . . . Terminal Hacks 4 | . 4 . Prototype ID Bank 2 | . 2 . Branch Access Points 1 | . 1 . Terminal Index 1 | . 1 . Fabricator Hacks . | . . . Repair Station Hacks 6 | . 6 . Scan Component 3 | . 3 . Repair 3 | . 3 . Recycling Unit Hacks . | . . . Scanalyzer . | . . . Garrison Access Hacks . | . . . Unauthorized Hacks 1 | . 1 . Terminals . | . . . Fabricators . | . . . Repair Stations . | . . . Recycling Units . | . . . Scanalyzers . | . . . Garrison Access . | . . . Data Cores Recovered . | . . . Used . | . . . Hacking Detections 4 | . 4 . Full Trace Events . | . . . Feedback Events . | . . . Feedback Blocked . | . . . Robot Schematics Acquired . | . . . Robots Built . | . . . Matter . | . . . Time . | . . . Total Robot Build Rating . | . . . Part Schematics Acquired . | . . . Parts Built . | . . . Matter . | . . . Time . | . . . Total Part Build Rating . | . . . Parts Repaired 3 | . 3 . Time 78 | . 78 . Parts Recycled . | . . . Recycled Matter . | . . . Retrieved Matter . | . . . Retrieved Components . | . . . Parts Scanalyzed . | . . . Part Schematics Acquired . | . . . Parts Damaged . | . . . Bothacking | -11 -10 -10 ------------ Run | Scr Mat Min Used RIF Installer . | . . . Robots Hacked . | . . . Non-combat . | . . . Combat . | . . . Robot Hacks Applied . | . . . Relay Couplers Released . | . . . Robots Rewired . | . . . Allies Hacked . | . . . Hacks Repelled . | . . . Allies | -11 -10 -10 -------- Run | Scr Mat Min Total Allies 1 | . . 1 Largest Group 1 | . . 1 Highest-Rated Group 31 | . . 31 Highest-Rated Ally 31 | . . 31 Total Orders . | . . . Ally Attacks 6 | . . 6 Total Damage 22 | . . 22 Kills . | . . . Allies Corrupted . | . . . Allies Melted . | . . . Intel | -11 -10 -10 ------- Run | Scr Mat Min Robot Analysis Total . | . . . Derelict Logs Recovered . | . . . Drone Launches . | . . . Drone Recoveries . | . . . Exploration | -11 -10 -10 ------------- Run | Scr Mat Min Turns Passed 1607 | 62 1334 211 Spaces Moved 713 | 19 592 102 Core . | . . . Treads 649 | . 582 67 Legs 29 | 19 10 . Wheels 35 | . . 35 Hover . | . . . Flight . | . . . Fastest Speed 120 | 120 120 120 Average Speed 166 | 120 169 161 Slowest Speed 200 | 120 180 200 Overloaded Moves . | . . . Propulsion Burnouts . | . . . Robots Hopped . | . . . Cave-ins Triggered . | . . . Exploration Rate (%) 38 | 3 85 26 Regions Visited 2 Branch Regions 1 Pre-discovered Areas . | . . . Known Exits Taken 1 | . 1 . Unknown Exits Taken 1 | 1 . . Scrap Searched . | . . . Spaces Dug . | . . . Terrain Destroyed . | . . . Melee . | . . . Projectile . | . . . AOE . | . . . Actions | -11 -10 -10 --------- Run | Scr Mat Min Total 1006 | 41 831 134 Wait 174 | 13 151 10 Move 711 | 18 591 102 Hop . | . . . Pick Up 21 | . 18 3 Fast Attach 5 | 1 3 1 Attach 3 | . . 3 Detach . | . . . Swap 8 | . 5 3 Drop 13 | . 9 4 Fire 70 | 9 53 8 Melee . | . . . Ram . | . . . Kick . | . . . Crush 1 | . 1 . Escape Stasis . | . . . Rewire . | . . . Trap . | . . . Miscellaneous . | . . . Route ------- -11/Scrapyard -10/Materials (discovered 4 exits: [*Mat x3] / *Min) -10/Mines History --------- Turn | Location | Event 27 | -11/Scrapyard | Discovered new exit (range 2) 63 | -11/Scrapyard | Entered Materials 212 | -10/Materials | Discovered new exit (range 4) 307 | -10/Materials | Build established: Mutant 551 | -10/Materials | Discovered new exit (range 4) 587 | -10/Materials | Identified exit to Mines 587 | -10/Materials | Central database locked down 769 | -10/Materials | Discovered new exit (range 14) 1253 | -10/Materials | Repaired Assault Rifle 1280 | -10/Materials | Repaired Lgt. Treads 1308 | -10/Materials | Repaired Lgt. Treads 1397 | -10/Materials | Entered Mines 1456 | -10/Mines | Escorted by a lone wolf Derelict 1514 | -10/Mines | Assembled infested the area 1549 | -10/Mines | Core integrity fell below 50% 1572 | -10/Mines | Core integrity fell below 20% 1577 | -10/Mines | Lost 3 parts (1p2w) 1608 | -10/Mines | Destroyed by D-53 Grenadier with Mini Grenade Launcher Last Messages --------------- 01542_ D-53 Grenadier unfolds itself. 01546_ Assault Rifle destroyed. 01546_ Lgt. Ion Engine destroyed. 01546_ Lgt. Assault Rifle destroyed. 01549_ as-16844 destroyed. 01549_ as-70675 destroyed. 01551_ The unstable cave ceiling collapses. 01551_ as-28516 destroyed. 01564_ K-01 Serf collects debris. 01589_ G-34 Mercenary destroyed. 01592_ G-47 Trooper knocked back. 01593_ K-01 Serf collects debris. 01593_ Lgt. Treads destroyed. 01595_ G-47 Trooper destroyed. 01597_ K-01 Serf collects debris. 01600_ Acquired Ion Engine. 01602_ Acquired 29 matter. 01604_ Acquired 31 matter. 01604_ K-01 Serf destroyed. 01608_ The unstable cave ceiling collapses. Map ----- +----------------------------------------------------+ | | | | | | | | | | | | | | | | | | | | | | | | | | | | | ??????????????????????????????????????????????? | | ??????????????????????????????????????????????? | | ??????????????????????????????????????????????? | | ??????????????????????????????????????????????? | | ??????????????????????????????????????????????? | | ????????????????????#####?????????????????????? | | ?????????????????#### # ##????????????????????? | | ?????????????????# #????????????????????? | | ????????????????## #????????????????????? | | ????????????????# ##???????????????????? | | ???????????????## = #???????????????????? | | ???????????##### @ #???????????????????? | | ???????????# ## # #???????????????????? | | ???????????# =##k ##???????????????????? | | ???????????# *= ####d #????????????????????? | | ???????????# [[ * #??# d#????????????????????? | | ??????????## #??# #????????????????????? | | ????????### #??# #????????????????????? | | ???????## #??# #???####?????????????? | | ??????# ##??# #??## ##????????????? | | ?????# ######???# #?## ####?????????? | | ?????# #?????????# #?# #?????????? | | ?????# ##??????????# ### #?????????? | | ?????## #??????????### ## ###???????? | | ??????###????######## #####???? | | ??????????# " ##### | | ??????????# "% # # | | ??????????# ######## " ## | | ???????????????????# ## = | | ???????????????????# % | | ???????????????????# | | ???????????????????## ## ## | | ????????????????????####?## ## ## ####? | | ??????????????????????????# ##??#???????? | | ??????????????????????????## ##???????????? | | ???????????????????????????## #????????????? | +----------------------------------------------------+ Best States ------------- Heat Dissipation 25 Energy Generation 10 Energy Capacity 125 Matter Stores 300 Matter Capacity 300 Sight Range 16 Terrain Scan Density 10 Evasion (%) 40 Recoil Reduction 2 Item Schematics ----------------- None Robot Schematics ------------------ None Fabricated ------------ Nothing Alien Tech Used ----------------- None Achievements -------------- None Challenges ------------ None Game ------ Seed AngularMatterChip Manual? 0 Play Time 00:12:20 Cumulative 611.2 hours Start 2019.11.22 @ 19:11:22 End 2019.11.22 @ 19:21:16 Sessions 1 Manual Loads 0 Difficulty Rogue Special Mode None Game No. 395 Rogue 395 Adventurer 0 Explorer 0 Win Type - Total 100 Types 66/6/8/10/5/1/4 Lore% 97 Gallery% 94 Achievement% 80 Wizard Run 0 Options --------- ASCII 0 Keyboard 0 Movement Numpad Keybinds 0 Fullscreen 2 Font 18/SmallcapsGlow Map View 76x50 Tactical HUD 1 Map Filters NONE Filters NONE Steam 1 RUN: 8d3ed3e8-3bd9-49bd-8c56-b987aab56c40